[Event "Championnat de France Universitaire Nan"]
[Site "Nancy, France"]
[Date "2020.02.08"]
[Round "2.4"]
[White "Daeschler, Florian"]
[Black "Fischer Schilling, Ian"]
[Result "1-0"]
[WhiteElo "2327"]
[BlackElo "1810"]
[PlyCount "89"]
[EventDate "2020.??.??"]
[TimeControl "15+5"]
[WhiteClock "0:05:35"]
[BlackClock "0:00:24"]

1. d4 {[%emt 0:00:02]} d5 {[%emt 0:00:02]} 2. c4 {[%emt 0:00:01]} e6 {[%emt 0:
00:02]} 3. Nf3 {[%emt 0:00:02]} Nf6 {[%emt 0:00:03]} 4. g3 {[%emt 0:00:02]} Be7
{[%emt 0:00:20]} 5. Bg2 {[%emt 0:00:01]} O-O {[%emt 0:00:03]} 6. O-O {[%emt 0:
00:02]} b6 {[%emt 0:00:21]} 7. cxd5 {[%emt 0:00:01]} exd5 {[%emt 0:00:03]} 8.
Nc3 {[%emt 0:00:02]} h6 {[%emt 0:00:35]} 9. Bf4 {[%emt 0:00:02]} Nh5 {[%emt 0:
01:00]} 10. Bd2 {[%emt 0:00:10]} Be6 {[%emt 0:00:05]} 11. Ne5 {[%emt 0:00:09]}
Nf6 {[%emt 0:00:23]} 12. Rc1 {[%emt 0:00:06]} Nfd7 {[%emt 0:01:34]} 13. Nf3 {
[%emt 0:00:49]} c5 {[%emt 0:01:04]} 14. Bf4 {[%emt 0:00:22]} c4 {[%emt 0:00:36]
} 15. Nd2 {[%emt 0:00:22]} g5 {[%emt 0:02:08]} 16. Nxd5 {[%emt 0:01:01]} Nc6 {
[%emt 0:01:37]} 17. Nxe7+ {[%emt 0:01:49]} Nxe7 {[%emt 0:00:02]} 18. Bd6 {
[%emt 0:00:15]} Rc8 {[%emt 0:00:19]} 19. e4 {[%emt 0:00:15]} Nf6 {[%emt 0:00:
50]} 20. Bxe7 {[%emt 0:00:08]} Qxe7 {[%emt 0:00:02]} 21. d5 {[%emt 0:00:02]}
Bg4 {[%emt 0:00:09]} 22. f3 {[%emt 0:00:12]} Bd7 {[%emt 0:00:06]} 23. Nxc4 {
[%emt 0:00:23]} Bb5 {[%emt 0:01:15]} 24. b3 {[%emt 0:00:05]} Qb4 {[%emt 0:00:
35]} 25. Qd4 {[%emt 0:00:09]} Nd7 {[%emt 0:00:18]} 26. Bh3 {[%emt 0:00:13]}
Bxc4 {[%emt 0:00:13]} 27. Rxc4 {[%emt 0:00:39]} Rxc4 {[%emt 0:00:02]} 28. Qxc4
{[%emt 0:00:04]} Qxc4 {[%emt 0:00:01]} 29. bxc4 {[%emt 0:00:01]} Ne5 {[%emt 0:
00:00]} 30. Kf2 {[%emt 0:00:16]} Nxc4 {[%emt 0:00:05]} 31. Rc1 {[%emt 0:00:05]}
b5 {[%emt 0:00:08]} 32. a4 {[%emt 0:00:14]} Nb2 {[%emt 0:00:11]} 33. Rc7 {
[%emt 0:00:10]} Nxa4 {[%emt 0:00:05]} 34. Rxa7 {[%emt 0:00:04]} Rb8 {[%emt 0:
00:17]} 35. Bd7 {[%emt 0:00:07]} Nc5 {[%emt 0:00:12]} 36. Bc6 {[%emt 0:00:05]}
Nd3+ {[%emt 0:00:20]} 37. Ke3 {[%emt 0:00:05]} Ne5 {[%emt 0:00:03]} 38. h3 {
[%emt 0:02:07]} Kf8 {[%emt 0:00:34]} 39. f4 {[%emt 0:00:10]} Nxc6 {[%emt 0:00:
56]} 40. dxc6 {[%emt 0:00:01]} Ke8 {[%emt 0:00:25]} 41. Kd4 {[%emt 0:00:42]}
Rd8+ {[%emt 0:01:02]} 42. Kc5 {[%emt 0:00:51]} Rd3 {[%emt 0:00:01]} 43. fxg5 {
[%emt 0:00:33]} hxg5 {[%emt 0:00:11]} 44. Kb6 {[%emt 0:00:04]} Rc3 {[%emt 0:00:
42]} 45. e5 {[%emt 0:00:11] Ke7 [%emt 00:00:02] Ra8 Kd7 [%emt 00:00:03] c7 Ke7
[%emt 00:00:05] Rd8} 1-0

[Event "Championnat de France Universitaire Nan"]
[Site "Nancy, France"]
[Date "2020.02.08"]
[Round "2.5"]
[White "Roch, Florian"]
[Black "Defromont, Benjamin"]
[Result "0-1"]
[WhiteElo "1959"]
[BlackElo "2263"]
[PlyCount "112"]
[EventDate "2020.??.??"]
[TimeControl "15+5"]
[WhiteClock "0:00:06"]
[BlackClock "0:00:18"]

1. e4 {[%emt 0:00:01]} e5 {[%emt 0:00:06]} 2. Nf3 {[%emt 0:00:01]} Nc6 {[%emt
0:00:04]} 3. Bb5 {[%emt 0:00:02]} a6 {[%emt 0:00:02]} 4. Ba4 {[%emt 0:00:02]}
Nf6 {[%emt 0:00:04]} 5. O-O {[%emt 0:00:03]} Be7 {[%emt 0:00:05]} 6. Re1 {
[%emt 0:00:03]} b5 {[%emt 0:00:03]} 7. Bb3 {[%emt 0:00:01]} d6 {[%emt 0:00:03]}
8. c3 {[%emt 0:00:07]} O-O {[%emt 0:00:04]} 9. h3 {[%emt 0:00:02]} Nb8 {[%emt
0:00:06]} 10. d4 {[%emt 0:00:04]} Nbd7 {[%emt 0:00:03]} 11. Nbd2 {[%emt 0:00:
04]} Bb7 {[%emt 0:00:06]} 12. Bc2 {[%emt 0:00:03]} Re8 {[%emt 0:00:07]} 13. Nf1
{[%emt 0:00:02]} Bf8 {[%emt 0:00:09]} 14. Ng3 {[%emt 0:00:02]} g6 {[%emt 0:00:
18]} 15. a4 {[%emt 0:00:02]} c5 {[%emt 0:00:50]} 16. d5 {[%emt 0:00:22]} c4 {
[%emt 0:00:02]} 17. Be3 {[%emt 0:00:17]} Nc5 {[%emt 0:00:21]} 18. Bxc5 {[%emt
0:01:20]} dxc5 {[%emt 0:00:02]} 19. Qd2 {[%emt 0:00:42]} Qc7 {[%emt 0:02:21]}
20. Rad1 {[%emt 0:01:52]} Rad8 {[%emt 0:02:09]} 21. axb5 {[%emt 0:02:37]} axb5
{[%emt 0:00:01]} 22. Ra1 {[%emt 0:00:00]} Ra8 {[%emt 0:02:29]} 23. Qg5 {[%emt
0:00:23]} Bg7 {[%emt 0:00:52]} 24. Nh2 {[%emt 0:01:43]} Nd7 {[%emt 0:01:27]}
25. Ng4 {[%emt 0:01:03]} Qd8 {[%emt 0:02:12]} 26. h4 {[%emt 0:01:35]} Nb6 {
[%emt 0:00:50]} 27. Qxd8 {[%emt 0:00:26]} Rexd8 {[%emt 0:00:07]} 28. h5 {[%emt
0:00:27]} h6 {[%emt 0:00:38]} 29. Red1 {[%emt 0:01:23]} Nc8 {[%emt 0:01:12]}
30. Rxa8 {[%emt 0:00:23]} Bxa8 {[%emt 0:00:01]} 31. Ra1 {[%emt 0:00:01]} Bb7 {
[%emt 0:00:02]} 32. Ne3 {[%emt 0:00:16]} Nd6 {[%emt 0:00:11]} 33. Kf1 {[%emt 0:
00:23]} Ra8 {[%emt 0:00:16]} 34. Rxa8+ {[%emt 0:00:04]} Bxa8 {[%emt 0:00:01]}
35. Ke2 {[%emt 0:00:04]} Kf8 {[%emt 0:00:03]} 36. Bd1 {[%emt 0:00:27]} Ke7 {
[%emt 0:00:08]} 37. Kd2 {[%emt 0:00:18]} Bb7 {[%emt 0:00:02]} 38. Bg4 {[%emt 0:
00:13]} Ba6 {[%emt 0:00:09]} 39. f3 {[%emt 0:00:34]} Bf6 {[%emt 0:00:05]} 40.
Bh3 {[%emt 0:00:17]} Bg5 {[%emt 0:00:04]} 41. Ke2 {[%emt 0:00:08]} Bf4 {[%emt
0:00:09]} 42. hxg6 {[%emt 0:00:07]} fxg6 {[%emt 0:00:06]} 43. Ngf1 {[%emt 0:00:
01]} h5 {[%emt 0:00:18]} 44. g3 {[%emt 0:00:09]} Bh6 {[%emt 0:00:03]} 45. Be6 {
[%emt 0:00:02]} b4 {[%emt 0:00:05]} 46. Nd1 {[%emt 0:00:27]} Nb5 {[%emt 0:00:
08]} 47. Nfe3 {[%emt 0:00:08]} Nd6 {[%emt 0:00:07]} 48. Kf2 {[%emt 0:00:04]}
Bb5 {[%emt 0:00:04]} 49. Ke2 {[%emt 0:00:07]} Ba4 {[%emt 0:00:02]} 50. Nf2 {
[%emt 0:00:02]} Bb5 {[%emt 0:00:05]} 51. Nfd1 {[%emt 0:00:03]} Kf6 {[%emt 0:00:
04]} 52. Nf2 {[%emt 0:00:07]} Ba4 {[%emt 0:00:07]} 53. Ng2 {[%emt 0:00:05]} Bc2
{[%emt 0:00:08]} 54. f4 {[%emt 0:00:04]} Nxe4 {[%emt 0:00:04]} 55. fxe5+ {
[%emt 0:00:09]} Kxe5 {[%emt 0:00:03]} 56. Nxe4 {[%emt 0:00:05]} Bxe4 {[%emt 0:
00:02]} 0-1

[Event "Championnat de France Universitaire Nan"]
[Site "Nancy, France"]
[Date "2020.02.08"]
[Round "2.6"]
[White "Belhadj, Seyfedine"]
[Black "Alloui-Cros, Baptiste"]
[Result "0-1"]
[WhiteElo "1640"]
[BlackElo "2141"]
[PlyCount "72"]
[EventDate "2020.??.??"]
[TimeControl "15+5"]
[WhiteClock "0:01:59"]
[BlackClock "0:00:25"]

1. e4 {[%emt 0:00:00]} Nf6 {[%emt 0:00:02]} 2. e5 {[%emt 0:00:11]} Nd5 {[%emt
0:00:01]} 3. d4 {[%emt 0:00:03]} d6 {[%emt 0:00:01]} 4. exd6 {[%emt 0:00:06]}
cxd6 {[%emt 0:00:02]} 5. Bc4 {[%emt 0:00:21]} Nb6 {[%emt 0:00:10]} 6. Bb3 {
[%emt 0:00:09]} g6 {[%emt 0:00:59]} 7. Ne2 {[%emt 0:01:46]} Bg7 {[%emt 0:00:07]
} 8. O-O {[%emt 0:00:06]} O-O {[%emt 0:00:15]} 9. Bg5 {[%emt 0:02:02]} Qc7 {
[%emt 0:00:47]} 10. Ng3 {[%emt 0:01:23]} Nc6 {[%emt 0:00:29]} 11. c3 {[%emt 0:
00:19]} h6 {[%emt 0:01:17]} 12. Be3 {[%emt 0:01:02]} Na5 {[%emt 0:02:41]} 13.
Bc2 {[%emt 0:01:15]} Nac4 {[%emt 0:00:07]} 14. Qc1 {[%emt 0:00:07]} Nxe3 {
[%emt 0:01:26]} 15. fxe3 {[%emt 0:00:52]} e5 {[%emt 0:01:31]} 16. Nd2 {[%emt 0:
01:34]} Be6 {[%emt 0:00:35]} 17. Qd1 {[%emt 0:00:46]} Nc4 {[%emt 0:01:48]} 18.
Nxc4 {[%emt 0:00:23]} Bxc4 {[%emt 0:00:22]} 19. Bd3 {[%emt 0:00:06]} f5 {[%emt
0:01:05]} 20. Bxc4+ {[%emt 0:00:20]} Qxc4 {[%emt 0:00:02]} 21. Qf3 {[%emt 0:00:
01]} b5 {[%emt 0:00:52]} 22. Rfc1 {[%emt 0:00:39]} e4 {[%emt 0:00:39]} 23. Qf4
{[%emt 0:00:20]} Qe6 {[%emt 0:00:14]} 24. h4 {[%emt 0:00:02]} d5 {[%emt 0:00:
11]} 25. Nf1 {[%emt 0:00:14]} Qe7 {[%emt 0:00:14]} 26. Nd2 {[%emt 0:00:05]} g5
{[%emt 0:00:16]} 27. Qf2 {[%emt 0:00:39]} f4 {[%emt 0:00:25]} 28. hxg5 {[%emt
0:00:14]} Qxg5 {[%emt 0:00:21]} 29. a4 {[%emt 0:00:07]} fxe3 {[%emt 0:00:04]}
30. Qe2 {[%emt 0:00:05]} exd2 {[%emt 0:00:02]} 31. Rd1 e3 {[%emt 0:00:05]} 32.
Rf1 {[%emt 0:00:16]} Rxf1+ {[%emt 0:00:13]} 33. Rxf1 {[%emt 0:00:05]} Rf8 {
[%emt 0:00:01]} 34. axb5 {[%emt 0:00:18]} Rxf1+ {[%emt 0:00:03]} 35. Kxf1 {
[%emt 0:00:05]} Qf6+ {[%emt 0:00:04]} 36. Qf3 {[%emt 0:00:11]} d1=Q# {[%emt 0:
00:12]} 0-1

[Event "Championnat de France Universitaire Nan"]
[Site "Nancy, France"]
[Date "2020.02.08"]
[Round "2.7"]
[White "Boutillon, Nathanael"]
[Black "Budak, Rewi"]
[Result "0-1"]
[WhiteElo "1900"]
[BlackElo "2079"]
[PlyCount "58"]
[EventDate "2020.??.??"]
[TimeControl "15+5"]
[WhiteClock "0:03:21"]
[BlackClock "0:02:23"]

1. e4 {[%emt 0:00:02]} c5 {[%emt 0:00:01]} 2. Nf3 {[%emt 0:00:02]} Nc6 {[%emt
0:00:06]} 3. d4 {[%emt 0:00:06]} cxd4 {[%emt 0:00:01]} 4. Nxd4 {[%emt 0:00:03]}
Qb6 {[%emt 0:00:01]} 5. Nf3 {[%emt 0:00:24]} e6 {[%emt 0:00:03]} 6. Be2 {[%emt
0:00:24]} Nf6 {[%emt 0:00:02]} 7. e5 {[%emt 0:01:08]} Ng4 {[%emt 0:01:58]} 8.
O-O {[%emt 0:01:32]} Ngxe5 {[%emt 0:00:02]} 9. Nc3 {[%emt 0:00:12]} Be7 {[%emt
0:00:27]} 10. Nxe5 {[%emt 0:01:47]} Nxe5 {[%emt 0:00:02]} 11. Be3 {[%emt 0:00:
02]} Qc6 {[%emt 0:01:43]} 12. Bb5 {[%emt 0:01:36]} Qc7 {[%emt 0:00:10]} 13. Bf4
{[%emt 0:00:38]} O-O {[%emt 0:04:02]} 14. Ne4 {[%emt 0:00:53]} d5 {[%emt 0:00:
47]} 15. Qd4 {[%emt 0:01:47]} Nf3+ {[%emt 0:00:21]} 16. gxf3 {[%emt 0:00:29]}
Qxf4 {[%emt 0:00:03]} 17. Rfe1 {[%emt 0:00:10]} dxe4 {[%emt 0:00:09]} 18. Rxe4
{[%emt 0:00:03]} Qg5+ {[%emt 0:00:19]} 19. Rg4 {[%emt 0:00:05]} Qf6 {[%emt 0:
00:22]} 20. Qe4 {[%emt 0:00:03]} Qf5 {[%emt 0:00:29]} 21. Qe2 {[%emt 0:00:46]}
Bf6 {[%emt 0:01:15]} 22. Bd3 {[%emt 0:00:06]} Qh5 {[%emt 0:00:08]} 23. f4 {
[%emt 0:00:11]} Kh8 {[%emt 0:01:01]} 24. Kh1 {[%emt 0:00:56]} e5 {[%emt 0:00:
08]} 25. Rxg7 {[%emt 0:00:04]} Qxe2 {[%emt 0:00:26]} 26. Rxh7+ {[%emt 0:00:05]}
Kg8 {[%emt 0:00:00]} 27. Rg1+ {[%emt 0:00:06]} Qg4 {[%emt 0:00:11]} 28. h3 {
[%emt 0:00:24]} Qxg1+ {[%emt 0:00:19]} 29. Kxg1 {[%emt 0:00:03]} exf4 {[%emt 0:
00:35]} 0-1

[Event "Championnat de France Universitaire Nan"]
[Site "Nancy, France"]
[Date "2020.02.08"]
[Round "2.8"]
[White "Ginovart, Axel"]
[Black "Rousseau, Matthieu"]
[Result "1-0"]
[WhiteElo "2164"]
[BlackElo "1868"]
[PlyCount "103"]
[EventDate "2020.??.??"]
[TimeControl "15+5"]
[WhiteClock "0:05:21"]
[BlackClock "0:09:50"]

1. e4 {[%emt 0:00:02]} e6 {[%emt 0:00:01]} 2. d4 {[%emt 0:00:00]} d5 {[%emt 0:
00:00]} 3. Nc3 {[%emt 0:00:00]} Bb4 {[%emt 0:00:02]} 4. e5 {[%emt 0:00:00]} c5
{[%emt 0:00:00]} 5. a3 {[%emt 0:00:00]} cxd4 {[%emt 0:00:00]} 6. axb4 {[%emt 0:
00:44]} dxc3 {[%emt 0:00:02]} 7. Qg4 {[%emt 0:00:44]} Kf8 {[%emt 0:00:04]} 8.
b3 {[%emt 0:01:08]} Qc7 {[%emt 0:00:12]} 9. Nf3 {[%emt 0:00:05]} Nc6 {[%emt 0:
00:04]} 10. Qf4 {[%emt 0:01:53]} Nge7 {[%emt 0:01:40]} 11. Bd3 {[%emt 0:01:02]}
f6 {[%emt 0:00:58]} 12. exf6 {[%emt 0:00:13]} Qxf4 {[%emt 0:00:02]} 13. fxe7+ {
[%emt 0:00:01]} Kxe7 {[%emt 0:00:02]} 14. Bxf4 {[%emt 0:00:01]} Nxb4 {[%emt 0:
00:02]} 15. Be5 {[%emt 0:00:23]} Bd7 {[%emt 0:00:03]} 16. Bxc3 {[%emt 0:00:05]}
Nxd3+ {[%emt 0:00:04]} 17. cxd3 {[%emt 0:00:00]} Rhg8 {[%emt 0:00:06]} 18. O-O
{[%emt 0:00:32]} a6 {[%emt 0:00:03]} 19. Ne5 {[%emt 0:00:25]} Bb5 {[%emt 0:00:
23]} 20. f4 {[%emt 0:00:21]} g6 {[%emt 0:00:07]} 21. Rfc1 {[%emt 0:00:16]} Rac8
{[%emt 0:00:44]} 22. Bb4+ {[%emt 0:00:22]} Kf6 {[%emt 0:00:06]} 23. Ng4+ {
[%emt 0:00:01]} Kf5 {[%emt 0:00:05]} 24. Nh6+ {[%emt 0:00:01]} Kxf4 {[%emt 0:
00:05]} 25. Re1 {[%emt 0:00:48]} Kg5 {[%emt 0:00:19]} 26. Bd2+ {[%emt 0:00:44]}
Kf6 {[%emt 0:00:02]} 27. Rf1+ {[%emt 0:00:04]} Ke5 {[%emt 0:00:11]} 28. Nxg8 {
[%emt 0:00:51]} Rxg8 {[%emt 0:00:06]} 29. Rfe1+ {[%emt 0:00:59]} Kd6 {[%emt 0:
00:10]} 30. d4 {[%emt 0:00:02]} Rg7 {[%emt 0:00:37]} 31. Bf4+ {[%emt 0:00:39]}
Kd7 {[%emt 0:00:10]} 32. Rac1 {[%emt 0:00:03]} Bc6 {[%emt 0:00:01]} 33. Be5 {
[%emt 0:00:02]} Rf7 {[%emt 0:00:06]} 34. Rf1 {[%emt 0:00:00]} Rf5 {[%emt 0:00:
11]} 35. g4 {[%emt 0:00:13]} Rxf1+ {[%emt 0:00:11]} 36. Rxf1 {[%emt 0:00:01]}
Ke7 {[%emt 0:00:01]} 37. Kg2 {[%emt 0:00:12]} Bb5 {[%emt 0:00:02]} 38. Rf2 {
[%emt 0:00:00]} Bd3 {[%emt 0:00:06]} 39. Kg3 {[%emt 0:00:08]} a5 {[%emt 0:00:
41]} 40. Bc7 {[%emt 0:00:02]} a4 {[%emt 0:00:10]} 41. bxa4 {[%emt 0:00:01]} Ke8
{[%emt 0:00:15]} 42. Bd6 {[%emt 0:00:04]} h6 {[%emt 0:00:17]} 43. Rf3 {[%emt 0:
00:14]} Bc2 {[%emt 0:00:07]} 44. a5 {[%emt 0:00:02]} Kd7 {[%emt 0:00:01]} 45.
Bc5 {[%emt 0:00:01]} h5 {[%emt 0:00:05]} 46. g5 {[%emt 0:00:08]} Kd8 {[%emt 0:
00:31]} 47. Rf7 {[%emt 0:00:05]} Kc8 {[%emt 0:00:05]} 48. Bb6 {[%emt 0:00:01]}
Bf5 {[%emt 0:00:06]} 49. Kf4 {[%emt 0:00:08]} Bd3 {[%emt 0:00:03]} 50. Ke5 {
[%emt 0:00:01]} Bf5 {[%emt 0:00:02]} 51. Kd6 {[%emt 0:00:01]} Bg4 {[%emt 0:00:
01]} 52. Rf8# {[%emt 0:00:01]} 1-0

[Event "Championnat de France Universitaire Nan"]
[Site "Nancy, France"]
[Date "2020.02.08"]
[Round "3.1"]
[White "Rakotomaharo, Fy Antenaina"]
[Black "Kouoi, Bertrand"]
[Result "1-0"]
[WhiteElo "2430"]
[BlackElo "2055"]
[PlyCount "74"]
[EventDate "2020.??.??"]
[TimeControl "15+5"]
[WhiteClock "0:08:03"]
[BlackClock "0:00:10"]

1. e4 {[%emt 0:00:00]} c5 {[%emt 0:00:02]} 2. Nf3 {[%emt 0:00:01]} Nc6 {[%emt
0:00:00]} 3. Nc3 {[%emt 0:00:04]} g6 {[%emt 0:00:10]} 4. d4 {[%emt 0:00:00]}
cxd4 {[%emt 0:00:02]} 5. Nxd4 {[%emt 0:00:01]} Bg7 {[%emt 0:00:01]} 6. Be3 {
[%emt 0:00:01]} Nf6 {[%emt 0:00:01]} 7. Bc4 {[%emt 0:00:00]} O-O {[%emt 0:00:
02]} 8. Bb3 {[%emt 0:00:00]} d6 {[%emt 0:00:03]} 9. h3 {[%emt 0:00:06]} Bd7 {
[%emt 0:00:08]} 10. O-O {[%emt 0:00:03]} a6 {[%emt 0:01:39]} 11. f4 {[%emt 0:
00:20]} Rc8 {[%emt 0:00:47]} 12. Nf3 {[%emt 0:00:13]} Qc7 {[%emt 0:00:29]} 13.
Qe1 {[%emt 0:00:00]} Na5 {[%emt 0:03:54]} 14. e5 {[%emt 0:00:00]} Ne8 {[%emt 0:
01:10]} 15. Nd5 Nxb3 {[%emt 0:00:00]} 16. Nxc7 {[%emt 0:00:00]} Nxa1 {[%emt 0:
00:31]} 17. Qxa1 {[%emt 0:00:00]} Rxc7 {[%emt 0:00:20]} 18. c3 {[%emt 0:00:00]}
Bb5 {[%emt 0:00:32]} 19. Re1 {[%emt 0:00:00]} e6 {[%emt 0:01:43]} 20. Bd4 {
[%emt 0:00:00]} d5 {[%emt 0:00:59]} 21. Qd1 {[%emt 0:00:00]} Rc8 {[%emt 0:00:
23]} 22. g4 {[%emt 0:00:35]} Nc7 {[%emt 0:01:22]} 23. Kh2 {[%emt 0:00:02]} Bd7
{[%emt 0:00:47]} 24. g5 {[%emt 0:00:00]} Rfd8 {[%emt 0:01:53]} 25. Bb6 {[%emt
0:00:00]} Re8 {[%emt 0:00:43]} 26. Kg3 {[%emt 0:00:00]} Kh8 {[%emt 0:01:09]}
27. h4 {[%emt 0:00:11]} Rg8 {[%emt 0:00:11]} 28. h5 {[%emt 0:00:00]} Ne8 {
[%emt 0:00:13]} 29. Rh1 {[%emt 0:00:00]} Bf8 {[%emt 0:00:17]} 30. hxg6 {[%emt
0:00:00]} fxg6 {[%emt 0:00:35]} 31. Nh4 {[%emt 0:00:00]} Kg7 {[%emt 0:00:12]}
32. Qd4 {[%emt 0:00:00]} Rc4 {[%emt 0:00:15]} 33. Qf2 {[%emt 0:00:00]} Kf7 {
[%emt 0:00:34]} 34. Nf3 {[%emt 0:00:00]} Rh8 {[%emt 0:00:07]} 35. f5 {[%emt 0:
00:43]} gxf5 {[%emt 0:00:08]} 36. Bd4 {[%emt 0:00:24]} Rc8 {[%emt 0:00:02]} 37.
Qh2 {[%emt 0:01:00]} Ng7 {[%emt 0:00:11]} 1-0

[Event "Championnat de France Universitaire Nan"]
[Site "Nancy, France"]
[Date "2020.02.08"]
[Round "3.2"]
[White "Schmuck, Corentin"]
[Black "Msellek, Ilyass"]
[Result "0-1"]
[WhiteElo "2013"]
[BlackElo "2261"]
[PlyCount "94"]
[EventDate "2020.??.??"]
[TimeControl "15+5"]
[WhiteClock "0:00:08"]
[BlackClock "0:02:33"]

1. e4 {[%emt 0:00:01]} c5 {[%emt 0:00:01]} 2. Nc3 {[%emt 0:00:02]} a6 {[%emt 0:
00:00]} 3. g3 {[%emt 0:00:04]} b5 {[%emt 0:00:01]} 4. Bg2 {[%emt 0:00:03]} Bb7
{[%emt 0:00:00]} 5. d3 {[%emt 0:00:05]} e6 {[%emt 0:00:02]} 6. Nge2 {[%emt 0:
00:07]} Nf6 {[%emt 0:01:20]} 7. O-O {[%emt 0:00:09]} b4 {[%emt 0:00:04]} 8. Nb1
{[%emt 0:00:07]} d5 {[%emt 0:00:02]} 9. e5 {[%emt 0:00:54]} Nfd7 {[%emt 0:00:
15]} 10. f4 {[%emt 0:00:04]} Nc6 {[%emt 0:00:18]} 11. Be3 {[%emt 0:01:04]} a5 {
[%emt 0:00:10]} 12. Nd2 {[%emt 0:00:37]} Be7 {[%emt 0:00:23]} 13. d4 {[%emt 0:
00:14]} Ba6 {[%emt 0:00:17]} 14. Nf3 {[%emt 0:00:49]} Qb6 {[%emt 0:00:32]} 15.
Re1 {[%emt 0:00:42]} Rc8 {[%emt 0:00:11]} 16. Kh1 {[%emt 0:00:15]} h5 {[%emt 0:
00:11]} 17. h4 {[%emt 0:00:39]} g6 {[%emt 0:02:07]} 18. dxc5 {[%emt 0:00:51]}
Bxc5 {[%emt 0:00:17]} 19. Ned4 {[%emt 0:00:56]} Kf8 {[%emt 0:01:11]} 20. Bh3 {
[%emt 0:00:47]} Nxd4 {[%emt 0:00:37]} 21. Bxd4 {[%emt 0:01:18]} Bxd4 {[%emt 0:
00:08]} 22. Nxd4 {[%emt 0:00:02]} Nc5 {[%emt 0:00:04]} 23. Bg2 {[%emt 0:01:17]}
Kg7 {[%emt 0:00:55]} 24. Qd2 {[%emt 0:00:10]} Ne4 {[%emt 0:00:24]} 25. Bxe4 {
[%emt 0:01:22]} dxe4 {[%emt 0:00:02]} 26. Kh2 {[%emt 0:00:27]} Rhd8 {[%emt 0:
00:24]} 27. Rad1 {[%emt 0:00:08]} Kh7 {[%emt 0:01:47]} 28. Rxe4 {[%emt 0:00:41]
} Bb7 {[%emt 0:00:15]} 29. Re2 {[%emt 0:00:02]} Rc4 {[%emt 0:00:52]} 30. c3 {
[%emt 0:00:10]} bxc3 {[%emt 0:00:10]} 31. bxc3 {[%emt 0:00:02]} Qc7 {[%emt 0:
00:06]} 32. Rb1 {[%emt 0:00:23]} Ba8 {[%emt 0:00:29]} 33. Re3 {[%emt 0:00:35]}
Rdxd4 {[%emt 0:00:12]} 34. cxd4 {[%emt 0:00:42]} Rc2 {[%emt 0:00:02]} 35. Re2 {
[%emt 0:00:04]} Rxd2 {[%emt 0:00:06]} 36. Rxd2 {[%emt 0:00:01]} Qc3 {[%emt 0:
00:33]} 37. Rbb2 {[%emt 0:00:13]} Qf3 {[%emt 0:00:32]} 38. Rb1 {[%emt 0:00:23]}
Be4 {[%emt 0:00:12]} 39. Re1 {[%emt 0:00:19]} Bf5 {[%emt 0:00:11]} 40. d5 {
[%emt 0:00:58]} exd5 {[%emt 0:00:03]} 41. Rg1 {[%emt 0:00:17]} Qg4 {[%emt 0:00:
04]} 42. Kg2 {[%emt 0:00:17]} Qh3+ {[%emt 0:00:10]} 43. Kf2 {[%emt 0:00:10]}
Be4 {[%emt 0:00:01]} 44. Ke3 {[%emt 0:00:01]} Qd7 {[%emt 0:00:16]} 45. Rc1 {
[%emt 0:00:07]} Qg4 {[%emt 0:00:12]} 46. Rc7 {[%emt 0:00:11]} Qxg3+ {[%emt 0:
00:09]} 47. Kd4 {[%emt 0:00:05]} Qg1+ {[%emt 0:00:13]} 0-1

[Event "Championnat de France Universitaire Nan"]
[Site "Nancy, France"]
[Date "2020.02.08"]
[Round "3.3"]
[White "Gatineau, Yovann"]
[Black "Lambert, Thomas"]
[Result "1/2-1/2"]
[WhiteElo "2381"]
[BlackElo "1988"]
[PlyCount "49"]
[EventDate "2020.??.??"]
[TimeControl "15+5"]
[WhiteClock "0:08:19"]
[BlackClock "0:04:55"]

1. d4 {[%emt 0:00:29]} d5 {[%emt 0:00:01]} 2. c4 {[%emt 0:00:00]} c6 {[%emt 0:
00:00]} 3. Nc3 {[%emt 0:00:02]} Nf6 {[%emt 0:00:00]} 4. e3 {[%emt 0:00:00]} Bf5
{[%emt 0:00:01]} 5. Nf3 {[%emt 0:00:04]} e6 {[%emt 0:00:02]} 6. Nh4 {[%emt 0:
00:09]} Be4 {[%emt 0:00:03]} 7. f3 {[%emt 0:00:10]} Bg6 {[%emt 0:00:01]} 8. Qb3
{[%emt 0:00:20]} Qc7 {[%emt 0:00:01]} 9. Bd2 {[%emt 0:00:09]} Nbd7 {[%emt 0:00:
37]} 10. cxd5 {[%emt 0:00:02]} exd5 {[%emt 0:00:27]} 11. e4 {[%emt 0:00:00]}
dxe4 {[%emt 0:00:38]} 12. Nxg6 {[%emt 0:00:02]} hxg6 {[%emt 0:00:01]} 13. fxe4
{[%emt 0:00:02]} Nb6 {[%emt 0:02:14]} 14. O-O-O {[%emt 0:00:46]} O-O-O {[%emt
0:00:40]} 15. Be3 {[%emt 0:00:57]} Ng4 {[%emt 0:02:32]} 16. Bg1 {[%emt 0:00:01]
} Qf4+ 17. Kb1 {[%emt 0:00:05]} Nf2 {[%emt 0:01:01]} 18. Bxf2 {[%emt 0:01:57]}
Qxf2 {[%emt 0:00:00]} 19. d5 {[%emt 0:00:58]} cxd5 {[%emt 0:00:35]} 20. Nxd5 {
[%emt 0:01:24]} Nxd5 {[%emt 0:00:28]} 21. Rxd5 {[%emt 0:00:46]} Qe1+ {[%emt 0:
00:08]} 22. Kc2 {[%emt 0:00:04]} Qxe4+ {[%emt 0:00:02]} 23. Rd3 {[%emt 0:00:06]
} Rxd3 {[%emt 0:00:08]} 24. Qxd3 {[%emt 0:00:14]} Qxd3+ {[%emt 0:02:30]} 25.
Bxd3 {[%emt 0:00:02]} 1/2-1/2

[Event "Championnat de France Universitaire Nan"]
[Site "Nancy, France"]
[Date "2020.02.08"]
[Round "3.4"]
[White "Chung, Mathilde"]
[Black "Daeschler, Florian"]
[Result "0-1"]
[WhiteElo "2089"]
[BlackElo "2327"]
[PlyCount "70"]
[EventDate "2020.??.??"]
[TimeControl "15+5"]
[WhiteClock "0:00:22"]
[BlackClock "0:02:22"]

1. d4 {[%emt 0:00:02]} d5 {[%emt 0:00:01]} 2. c4 {[%emt 0:00:03]} e6 {[%emt 0:
00:02]} 3. Nf3 {[%emt 0:00:07]} Nf6 {[%emt 0:00:02]} 4. Nc3 {[%emt 0:00:09]}
Be7 {[%emt 0:00:03]} 5. Bf4 {[%emt 0:00:12]} O-O {[%emt 0:00:03]} 6. e3 {[%emt
0:00:05]} b6 {[%emt 0:00:02]} 7. cxd5 {[%emt 0:00:06]} Nxd5 {[%emt 0:00:01]} 8.
Nxd5 {[%emt 0:00:18]} Qxd5 {[%emt 0:00:02]} 9. a3 {[%emt 0:01:17]} c5 {[%emt 0:
00:01]} 10. dxc5 {[%emt 0:00:46]} Qxc5 {[%emt 0:00:03]} 11. Rc1 {[%emt 0:00:40]
} Qa5+ {[%emt 0:00:00]} 12. Qd2 {[%emt 0:00:03]} Qxd2+ {[%emt 0:00:21]} 13.
Nxd2 {[%emt 0:00:02]} Na6 {[%emt 0:00:22]} 14. Bb5 {[%emt 0:01:06]} Bb7 {[%emt
0:00:12]} 15. O-O {[%emt 0:00:11]} Rac8 {[%emt 0:01:11]} 16. b4 {[%emt 0:01:24]
} Rfd8 {[%emt 0:00:28]} 17. Nb3 {[%emt 0:00:09]} Bf6 {[%emt 0:00:31]} 18. h3 {
[%emt 0:03:17]} e5 {[%emt 0:01:32]} 19. Bg3 {[%emt 0:00:07]} Nc7 {[%emt 0:00:
30]} 20. Be2 {[%emt 0:00:49]} Ne6 {[%emt 0:01:44]} 21. Rfd1 {[%emt 0:00:33]}
Rxc1 {[%emt 0:01:02]} 22. Rxc1 {[%emt 0:00:08]} Bd5 {[%emt 0:00:49]} 23. Rb1 {
[%emt 0:01:54]} g6 {[%emt 0:00:38]} 24. a4 {[%emt 0:00:53]} h5 {[%emt 0:00:11]}
25. f3 {[%emt 0:00:16]} e4 {[%emt 0:01:18]} 26. f4 {[%emt 0:00:46]} Ng7 {[%emt
0:01:14]} 27. a5 {[%emt 0:00:15]} Nf5 {[%emt 0:01:00]} 28. Bf2 {[%emt 0:00:01]}
h4 {[%emt 0:00:16]} 29. Nd2 {[%emt 0:00:41]} Rc8 {[%emt 0:00:37]} 30. Nb3 {
[%emt 0:01:02]} Rc3 {[%emt 0:00:04]} 31. Nd4 {[%emt 0:00:10]} Bxd4 {[%emt 0:00:
57]} 32. exd4 {[%emt 0:00:02]} e3 {[%emt 0:00:03]} 33. Be1 {[%emt 0:00:05]} Rc2
{[%emt 0:00:02]} 34. Bd3 {[%emt 0:00:03]} Rxg2+ {[%emt 0:00:02]} 35. Kf1 {
[%emt 0:00:01]} e2+ {[%emt 0:00:07]} 0-1